bitfinex-derivatives/quotes_SOLF0:USTF0_20250821
["timestamp","ask_amount","ask_price","bid_price","bid_amount"]
[1755754026474,2.94,187.11,187.03,7.05764387]
[1755754026881,2.94,187.11,187.03,7.9164]
[1755754027174,2.94,187.11,187.03,2.57]
[1755754027676,2.94,187.11,187.03,7.9164]
[1755754028978,2.94,187.11,187.03,2.57]
[1755754029674,2.94,187.15,187.05,2.57]
[1755754030073,2.94,187.15,187.06,5.3456]
[1755754030779,2.94,187.15,187.05,7.9159]
[1755754030979,2.94,187.15,187.05,2.57]
[1755754031480,2.94,187.15,187.08,2.57]
[1755754033082,2.94,187.13,187.04,4.85930005]
[1755754033576,2.94,187.13,187.04,10.20530005]
[1755754034876,2.94,187.13,187.05,5.3459]
[1755754035093,2.94,187.13,187.06,2.57]
[1755754037082,2.94,187.13,187.06,7.9156]
[1755754038187,2.94,187.13,187.06,2.57]
[1755754045901,2.94,187.13,187.06,7.9156]
[1755754047606,2.94,187.13,187.06,2.57]
[1755754050506,2.94,187.13,187.04,7.63540005]
[1755754050707,2.94,187.13,187.05,7.9259]
[1755754052612,2.94,187.13,187.05,2.58]
[1755754055208,2.91,187.12,187.01,6.77694392]
[1755754055408,2.91,187.12,187.02,2.58]
[1755754055607,2.28930005,187.2,187.02,2.58]
[1755754055608,2.91,187.09,187.02,2.58]
[1755754059607,2.91,187.09,187.02,7.9267]
[1755754059808,2.91,187.09,187.03,2.58]
[1755754060008,2.91,187.13,187.03,2.58]
[1755754060209,2.91,187.13,187.05,2.58]
[1755754060714,2.91,187.13,187.07,5.3453]
[1755754061117,2.91,187.13,187.09,2.58]
[1755754061912,2.28930005,187.16,187.07,2.28930005]
[1755754062108,5.19930005,187.16,187.08,2.58]
[1755754062510,0.03489449,187.13,187.07,2.28930005]
[1755754062718,0.03489449,187.13,187.1,2.58]
[1755754063713,0.03489449,187.13,187.11,2.58]
[1755754064911,0.03489449,187.13,187.12,2.58]
[1755754066014,0.03489449,187.13,187.12,3.12]
[1755754066221,2.91,187.22,187.15,2.54]
[1755754067220,2.91,187.22,187.15,7.883]
[1755754067410,2.91,187.22,187.17,0.03875651]
[1755754067616,2.91,187.21,187.17,2.57875651]
[1755754069019,359.24,187.23,187.17,0.03875651]
[1755754069221,2.91,187.2,187.17,0.03875651]
[1755754069415,2.91,187.19,187.17,0.03875651]
[1755754069821,2.91,187.22,187.17,0.03875651]
[1755754070016,2.91,187.21,187.17,0.03875651]
[1755754070221,2.91,187.2,187.17,2.57875651]
[1755754071112,359.24,187.23,187.17,0.03875651]
[1755754071318,2.91,187.22,187.18,2.54]
[1755754071914,2.91,187.21,187.18,2.54]
[1755754072120,2.91,187.21,187.17,0.03875651]
[1755754072424,2.91,187.2,187.17,2.57875651]
[1755754072615,2.91,187.2,187.17,0.03875651]
[1755754072819,2.91,187.19,187.17,0.03875651]
[1755754075425,2.91,187.23,187.17,2.57875651]
[1755754075925,2.91,187.23,187.17,7.92125651]
[1755754078831,2.91,187.23,187.18,5.342]
[1755754079022,2.91,187.23,187.19,2.54]
[1755754079330,2.9,187.22,187.19,2.54]
[1755754080325,2.28930005,187.24,187.19,2.54]
[1755754080531,2.9,187.21,187.19,2.54]
[1755754081927,2.28930005,187.24,187.18,5.3422]
[1755754082132,2.28930005,187.24,187.2,2.54]
[1755754082332,2.9,187.23,187.2,2.54]
[1755754082828,2.9,187.26,187.18,2.54]
[1755754083033,2.9,187.26,187.2,5.3415]
[1755754083231,2.28930005,187.25,187.18,2.54]
[1755754083431,2.9,187.24,187.15,2.54]
[1755754083631,2.9,187.24,187.16,5.3426]
[1755754083831,2.28930005,187.25,187.2,0.0350101]
[1755754084031,2.9,187.24,187.2,0.0350101]
[1755754084329,2.28930005,187.25,187.2,0.0350101]
[1755754084533,2.9,187.22,187.2,0.0350101]
[1755754084929,130.58,187.27,187.2,2.5750101]
[1755754085129,2.9,187.26,187.2,2.5750101]
[1755754086034,2.9,187.26,187.2,7.9166101]
[1755754087838,2.9,187.22,187.2,0.0350101]
[1755754088039,2.9,187.21,187.2,0.0350101]
[1755754097941,2.28930005,187.28,187.2,0.0350101]
[1755754098142,2.9,187.26,187.2,0.0350101]
[1755754100539,2.9,187.26,187.2,5.3766101]
[1755754103840,2.9,187.26,187.2,0.0350101]
[1755754104742,2.9,187.26,187.2,5.3767101]
[1755754106140,2.28930005,187.28,187.21,5.3414]
[1755754106338,2.86,187.27,187.21,5.3414]
[1755754106547,2.86,187.27,187.2,0.0350101]
[1755754107043,2.86,187.27,187.2,5.3766101]
[1755754107246,2.86,187.27,187.2,0.0350101]
[1755754109344,2.86,187.27,187.2,5.3766101]
[1755754110842,2.86,187.27,187.21,5.3413]
[1755754111149,2.86,187.27,187.21,2.54]
[1755754111844,2.86,187.25,187.22,7.8811]
[1755754112238,2.86,187.25,187.22,2.54]
[1755754113540,132.80930005,187.28,187.22,2.54]
[1755754113744,135.66930005,187.28,187.22,2.54]
[1755754114042,135.66930005,187.28,187.22,7.881]
[1755754114242,135.66930005,187.28,187.22,2.54]
[1755754114547,135.66930005,187.28,187.23,5.3408]
[1755754114739,2.86,187.26,187.23,7.8808]
[1755754117053,133.38,187.28,187.25,2.54]
[1755754117252,2.86,187.27,187.25,2.54]
[1755754118556,2.86,187.27,187.24,0.04063482]
[1755754118746,130.52,187.28,187.24,0.04063482]
[1755754118946,2.86,187.27,187.24,0.04063482]
[1755754119148,2.86,187.25,187.24,0.04063482]
[1755754120554,130.52,187.28,187.24,0.04063482]
[1755754120753,2.86,187.27,187.24,2.58063482]
[1755754122252,2.86,187.27,187.24,7.92113482]
[1755754122750,130.52,187.28,187.25,7.8801]
[1755754122957,130.52,187.28,187.26,2.54]
[1755754123147,194.06246977,187.29,187.26,2.54]
[1755754123351,194.06246977,187.29,187.24,0.04063482]
[1755754123352,2.86,187.28,187.24,0.04063482]
[1755754123546,194.06246977,187.29,187.24,0.04063482]
[1755754123746,2.86,187.27,187.24,0.04063482]
[1755754123960,2.86,187.27,187.24,7.92093482]
[1755754124455,194.06246977,187.29,187.24,2.58063482]
[1755754124656,2.86,187.26,187.24,0.04063482]
[1755754125552,194.06246977,187.29,187.24,7.92113482]
[1755754125757,2.86,187.27,187.24,7.92113482]
[1755754126755,2.86,187.27,187.24,2.58063482]
[1755754126958,1.46432218,187.28,187.24,2.58063482]
[1755754127157,2.86,187.26,187.24,2.58063482]
[1755754127853,2.86,187.25,187.24,0.04063482]
[1755754130460,5.14940676,187.25,187.24,0.04063482]
[1755754133154,5.14940676,187.25,187.17,7.03405281]
[1755754133359,130.46,187.27,187.16,5.3425]
[1755754133360,2.28940676,187.22,187.16,4.49405281]
[1755754133666,132.74940676,187.22,187.16,12.37675281]
[1755754133864,2.86,187.18,187.15,2.54]
[1755754134065,132.74940676,187.22,187.14,2.54]
[1755754134066,2.86,187.17,187.14,2.54]
[1755754134253,132.74940676,187.22,187.15,2.54]
[1755754134453,2.86,187.21,187.15,2.54]
[1755754134653,0.03445149,187.17,187.15,2.54]
[1755754134861,0.03445149,187.17,187.16,2.54]
[1755754135561,0.03445149,187.17,187.16,7.8828]
[1755754137165,0.03445149,187.17,187.16,12.37685281]
[1755754137760,0.03445149,187.17,187.16,7.8828]
[1755754139863,0.03445149,187.17,187.16,12.37685281]
[1755754140567,2.81,187.26,187.16,12.37685281]
[1755754140568,2.81,187.26,187.21,5.3412]
[1755754140773,2.81,187.25,187.22,2.51]
[1755754141069,2.81,187.27,187.21,5.3412]
[1755754141667,331.42851302,187.28,187.22,5.3411]
[1755754141863,2.81,187.26,187.22,2.54571867]
[1755754142062,2.81,187.26,187.23,2.51]
[1755754142767,2.81,187.25,187.22,0.03571867]
[1755754142967,2.81,187.24,187.22,0.03571867]
[1755754143366,2.81,187.27,187.22,0.03571867]
[1755754143564,2.81,187.24,187.22,0.03571867]
[1755754143968,2.81,187.23,187.22,0.03571867]
[1755754148172,2.81,187.23,187.14,2.51]
[1755754148372,2.81,187.21,187.14,2.51]
[1755754148573,2.81,187.21,187.15,5.3431]
[1755754148762,2.81,187.21,187.14,2.51]
[1755754149570,2.81,187.16,187.13,5.3435]
[1755754149872,2.81,187.16,187.13,7.8835]
[1755754150865,2.81,187.16,187.13,2.54]
[1755754152982,0.03781691,187.19,187.12,2.54]
[1755754153177,2.81,187.15,187.12,2.54]
[1755754154082,2.81,187.18,187.11,4.49433427]
[1755754154380,2.81,187.18,187.09,12.37893427]
[1755754155076,2.84696706,187.15,187.09,12.37893427]
[1755754155282,2.84696706,187.15,187.09,7.8846]
[1755754155783,2.81,187.14,187.1,7.8844]
[1755754156085,2.81,187.14,187.11,2.54]
[1755754156479,2.81,187.14,187.11,5.3442]
[1755754156682,2.81,187.14,187.11,7.8842]
[1755754156889,2.81,187.14,187.12,2.54]
[1755754158588,0.03696706,187.15,187.13,2.54]
[1755754158892,0.03696706,187.15,187.14,2.54]
[1755754161592,0.03696706,187.15,187.12,5.3438]
[1755754161795,0.03696706,187.15,187.13,2.54]
[1755754162090,0.03696706,187.15,187.14,2.54]
[1755754163396,0.03696706,187.15,187.14,5.3434]
[1755754163588,0.03696706,187.15,187.14,7.8834]
[1755754167999,0.03696706,187.15,187.14,10.17280676]
[1755754170204,0.03696706,187.15,187.14,14.66714103]
[1755754184000,0.03696706,187.15,187.13,7.8836]
[1755754185709,2.96696706,187.15,187.13,7.8836]
[1755754186013,2.96696706,187.15,187.13,2.54]
[1755754186401,2.96696706,187.15,187.13,7.8836]
[1755754188810,2.96696706,187.15,187.13,2.54]
[1755754190712,2.96696706,187.15,187.13,7.8836]
[1755754192712,0.03696706,187.15,187.13,7.8836]
[1755754192913,0.03696706,187.15,187.14,2.54]
[1755754196919,0.03696706,187.15,187.14,7.8834]
[1755754199016,0.03696706,187.15,187.14,2.54]
[1755754201009,0.03696706,187.15,187.12,4.49433427]
[1755754201010,2.75,187.14,187.12,4.49433427]
[1755754202011,2.75,187.14,187.12,7.03433427]
[1755754202608,0.03696706,187.15,187.14,2.54]
[1755754202813,0.03696706,187.15,187.14,13.84337865]
[1755754203008,2.75,187.23,187.15,2.54]
[1755754203219,2.75,187.22,187.19,4.00564438]
[1755754203914,2.75,187.21,187.19,4.00564438]
[1755754204120,2.75,187.21,187.19,1.46564438]
[1755754204414,2.75,187.21,187.19,0.04065837]
[1755754204612,2.75,187.2,187.19,0.04065837]
[1755754206115,331.38851302,187.28,187.19,0.04065837]
[1755754206318,2.75,187.22,187.19,2.58065837]
[1755754206818,2.75,187.22,187.2,2.54]
[1755754207118,2.75,187.27,187.21,1.46564438]
[1755754207318,2.75,187.25,187.23,1.46564438]
[1755754208318,2.75,187.28,187.25,2.54]
[1755754208517,2.75,187.28,187.25,4.00564438]
[1755754208907,2.75,187.3,187.25,1.46564438]
[1755754209110,360.56564438,187.31,187.25,1.46564438]
[1755754209413,2.75,187.27,187.25,1.46564438]
[1755754209810,2.75,187.3,187.26,0.03532183]
[1755754210016,2.75,187.29,187.26,0.03532183]
[1755754210219,2.75,187.29,187.26,2.57532183]
[1755754211918,2.75,187.32,187.26,2.57532183]
[1755754212117,2.75,187.32,187.26,7.91502183]
[1755754212822,2.28735897,187.33,187.27,5.3396]
[1755754212823,2.75,187.33,187.27,5.3396]
[1755754213826,2.75,187.33,187.26,2.57532183]
[1755754216728,5.03735897,187.33,187.26,2.57532183]
[1755754216928,2.75,187.32,187.26,2.57532183]
[1755754217820,2.75,187.32,187.26,0.03532183]
[1755754218224,2.75,187.32,187.26,2.57532183]
[1755754218725,2.75,187.32,187.26,7.91522183]
[1755754219222,2.75,187.32,187.26,5.37522183]
[1755754219424,2.75,187.35,187.28,2.54]
[1755754219931,2.75,187.35,187.28,7.8793]
[1755754220220,2.75,187.35,187.3,0.03856567]
[1755754220424,2.28735897,187.36,187.3,0.03856567]
[1755754220720,2.75,187.33,187.3,0.03856567]
[1755754221125,2.75,187.33,187.31,2.54]
[1755754221327,2.75,187.33,187.3,0.03856567]
[1755754222130,2.75,187.32,187.3,0.03856567]
[1755754222517,2.75,187.31,187.3,0.03856567]
[1755754225830,5.03735897,187.36,187.3,0.03856567]
[1755754226233,2.77,187.34,187.3,0.03856567]
[1755754226535,2.77,187.32,187.3,0.03856567]
[1755754226734,2.77,187.31,187.3,0.03856567]
[1755754229542,2.77,187.32,187.3,0.03856567]
[1755754229942,2.77,187.35,187.3,0.03856567]
[1755754236848,2.28735897,187.36,187.3,0.03856567]
[1755754236849,2.77,187.34,187.3,0.03856567]
[1755754237049,2.77,187.33,187.3,0.03856567]
[1755754237250,2.28735897,187.36,187.3,0.03856567]
[1755754237450,2.77,187.35,187.3,0.03856567]
[1755754237648,2.77,187.34,187.3,0.03856567]
[1755754237848,2.77,187.33,187.3,0.03856567]
[1755754238045,2.77,187.34,187.3,0.03856567]
[1755754238350,2.77,187.37,187.31,2.53]
[1755754238749,2.77,187.37,187.31,7.8684]
[1755754238950,2.77,187.37,187.31,2.53]
[1755754239152,2.77,187.37,187.32,5.37449839]
[1755754239351,2.77,187.36,187.33,2.53]
[1755754239952,2.77,187.35,187.32,5.37449839]
[1755754240257,2.77,187.38,187.32,0.03639839]
[1755754241158,2.77,187.4,187.32,5.37459839]
[1755754241554,2.77,187.4,187.32,7.90459839]
[1755754243153,2.77,187.4,187.34,7.8677]
[1755754243358,2.77,187.4,187.34,4.81735897]
[1755754243852,2.77,187.4,187.36,2.53]
[1755754244062,2.77,187.4,187.35,5.3371]
[1755754244255,132.54735897,187.42,187.36,5.3371]
[1755754244557,2.77,187.41,187.38,2.53]
[1755754245054,130.26,187.42,187.38,2.53]
[1755754245254,2.77,187.41,187.36,0.03478305]
[1755754245760,2.77,187.4,187.36,0.03478305]
[1755754246060,2.77,187.39,187.36,0.03478305]
[1755754246259,2.77,187.39,187.36,2.56478305]
[1755754246656,130.26,187.42,187.36,2.56478305]
[1755754247058,133.03,187.42,187.36,2.56478305]
[1755754248866,133.03,187.42,187.38,5.3365]
[1755754249065,2.77,187.42,187.39,2.53]
[1755754249866,2.77,187.45,187.38,5.3365]
[1755754250066,2.77,187.45,187.37,5.3367]
[1755754250368,2.77,187.45,187.36,2.53]
[1755754250563,2.77,187.45,187.39,0.03650541]
[1755754255072,2.28735897,187.46,187.4,5.336]
[1755754255260,2.77,187.43,187.4,5.336]
[1755754255969,2.28735897,187.46,187.4,5.336]
[1755754256166,3.0,187.45,187.4,5.336]
[1755754256364,3.0,187.43,187.4,5.336]
[1755754257566,3.0,187.43,187.4,7.866]
[1755754257771,132.48735897,187.47,187.39,0.03650541]
[1755754258072,3.0,187.46,187.39,0.03650541]
[1755754259974,3.0,187.43,187.39,0.03650541]
[1755754260180,3.0,187.41,187.39,0.03650541]
[1755754260469,2.28735897,187.44,187.39,0.03650541]
[1755754260873,3.0,187.43,187.39,0.03650541]
[1755754262173,3.0,187.41,187.39,0.03650541]
[1755754262375,3.0,187.43,187.39,0.03650541]
[1755754262679,3.0,187.4,187.3,2.53]
[1755754262974,3.0,187.37,187.31,5.3385]
[1755754263364,3.0,187.44,187.33,2.57]
[1755754263569,3.0,187.43,187.36,5.3371]
[1755754263971,0.03592117,187.4,187.36,5.3369]
[1755754264175,3.0,187.39,187.32,2.28735897]
[1755754264376,3.0,187.39,187.36,2.57]
[1755754264579,3.0,187.39,187.36,7.9071]
[1755754264774,0.03592117,187.4,187.37,2.57]
[1755754264973,0.03592117,187.4,187.38,2.57]
[1755754266481,0.03592117,187.4,187.39,2.57]
[1755754266876,0.03592117,187.4,187.39,7.9063]
[1755754271981,0.03592117,187.4,187.36,2.57]
[1755754272179,3.0,187.39,187.33,2.57]
[1755754272882,3.0,187.39,187.36,7.907]
[1755754273280,0.03592117,187.4,187.37,7.9068]
[1755754273483,0.03592117,187.4,187.39,2.57]
[1755754278482,0.03592117,187.4,187.39,7.9063]
[1755754290195,3.0,187.47,187.43,2.55]
[1755754290495,3.0,187.47,187.44,2.55]
[1755754290692,2.94,187.46,187.45,2.05660552]
[1755754291093,2.94,187.46,187.45,2.05660432]
[1755754292103,2.94,187.46,187.44,0.03405985]
[1755754292402,2.94,187.46,187.45,2.05661108]
[1755754292601,2.94,187.46,187.45,2.0566248]
[1755754295203,2.94,187.46,187.45,6.89851911]
[1755754297606,2.94,187.49,187.45,6.89851911]
[1755754297801,2.28735897,187.5,187.46,6.89851911]
[1755754297802,2.94,187.47,187.46,6.89851911]
[1755754298107,2.94,187.5,187.46,6.89851911]
[1755754298306,130.1,187.51,187.47,6.89849031]
[1755754298508,2.94,187.48,187.45,2.55]
[1755754298704,2.94,187.48,187.46,6.89858254]
[1755754298907,2.94,187.48,187.47,6.89858254]
[1755754300311,2.94,187.48,187.47,2.05618449]
[1755754300603,2.94,187.5,187.48,2.55]
[1755754300810,2.94,187.52,187.49,6.89698249]
[1755754301111,2.94,187.52,187.5,6.89698249]
[1755754301309,2.94,187.55,187.51,6.89698249]
[1755754301510,2.94,187.55,187.52,6.89698249]
[1755754301713,2.94,187.55,187.53,2.05607572]
[1755754302006,2.94,187.55,187.49,2.55]
[1755754302007,2.94,187.55,187.52,0.03620761]
[1755754302214,2.94,187.55,187.53,2.0548195]
[1755754302516,2.94,187.55,187.52,0.03620761]
[1755754302809,2.94,187.54,187.53,2.05367683]
[1755754303404,2.94,187.54,187.53,6.88215749]
[1755754304314,2.94,187.54,187.52,0.03620761]
[1755754304610,135.32735897,187.53,187.52,0.03620761]
[1755754307502,2.28735897,187.53,187.52,0.03620761]
[1755754307716,130.08,187.54,187.52,9.4621461]
[1755754307907,130.08,187.54,187.53,2.05099328]
[1755754309110,130.08,187.54,187.52,0.03620761]
[1755754309313,130.08,187.54,187.52,2.58620761]
[1755754310310,130.08,187.54,187.53,2.04993015]
[1755754310711,133.02,187.54,187.53,2.04993015]
[1755754312114,133.02,187.54,187.52,0.03620761]
[1755754312916,2.94,187.53,187.52,0.03620761]
[1755754313112,2.94,187.53,187.52,2.08536598]
[1755754313413,2.94,187.53,187.52,0.03620761]
[1755754315609,2.94,187.53,187.52,2.09114479]
[1755754317517,132.89,187.54,187.4,4.4751418]
[1755754317710,2.28735897,187.51,187.42,3.03]
[1755754317910,130.04,187.5,187.44,3.03]
[1755754318122,130.04,187.51,187.46,3.03]
[1755754318422,130.04,187.51,187.48,3.03]
[1755754318716,132.85,187.51,187.48,3.03]
[1755754318920,2.84839049,187.5,187.49,9.65077813]
[1755754320725,2.84839049,187.5,187.49,9.65184756]
[1755754321322,2.84839049,187.5,187.49,9.65259663]
[1755754321521,2.84839049,187.5,187.49,4.81923979]
[1755754322323,2.84839049,187.5,187.49,9.65321414]
[1755754322523,2.84839049,187.5,187.49,4.81923979]
[1755754323622,3.38839049,187.5,187.39,3.03]
[1755754323824,2.81,187.43,187.39,3.03]
[1755754324017,2.81,187.42,187.36,3.03]
[1755754324221,2.81,187.42,187.36,8.3671]
[1755754324424,130.04,187.43,187.37,3.03]
[1755754324626,0.03509362,187.41,187.37,3.03]
[1755754324929,0.03509362,187.41,187.35,3.03]
[1755754327631,2.84509362,187.41,187.35,3.03]
[1755754327822,2.84509362,187.41,187.32,3.03]
[1755754329633,5.95371493,187.49,187.37,2.28735897]
[1755754329839,2.81,187.57,187.47,2.28735897]
[1755754330025,2.81,187.57,187.42,4.4751418]
[1755754330026,2.81,187.57,187.48,5.03429299]
[1755754330330,2.81,187.57,187.49,2.00429299]
[1755754330536,2.28735897,187.53,187.5,2.00429299]
[1755754330726,2.81,187.52,187.43,3.03]
[1755754330926,2.81,187.52,187.44,2.00327726]
[1755754331126,2.81,187.52,187.45,7.33787726]
[1755754331326,2.81,187.52,187.46,5.03327726]
[1755754331622,2.81,187.52,187.48,3.03]
[1755754331827,2.81,187.52,187.45,2.28735897]
[1755754331828,135.5,187.53,187.49,5.03327726]
[1755754332133,135.5,187.53,187.5,3.03]
[1755754332435,135.5,187.53,187.48,5.3337]
[1755754332731,138.31,187.53,187.49,2.00300471]
[1755754332929,138.31,187.53,187.48,8.3637]
[1755754333129,138.31,187.53,187.49,5.03300503]
[1755754333333,135.5,187.53,187.5,3.03]
[1755754333526,135.5,187.53,187.51,5.03296247]
[1755754333725,135.5,187.53,187.51,3.03]
[1755754333933,135.5,187.53,187.52,3.03]
[1755754334432,2.81,187.56,187.52,3.03]
[1755754335029,138.27,187.58,187.53,3.03]
[1755754335223,358.62,187.6,187.51,2.28735897]
[1755754335430,358.62,187.6,187.52,5.03225865]
[1755754335633,138.21,187.62,187.54,5.31735897]
[1755754335836,138.21,187.62,187.55,6.87689429]
[1755754336132,138.21,187.62,187.56,6.87689429]
[1755754336333,135.4,187.62,187.57,6.87689429]
[1755754336534,2.81,187.6,187.54,5.35404544]
[1755754336729,135.4,187.62,187.55,4.87209817]
[1755754336929,135.4,187.62,187.56,9.90302738]
[1755754337129,135.4,187.62,187.58,3.03]
[1755754337432,2.81,187.63,187.59,3.03]
[1755754337635,358.56,187.7,187.51,4.4751418]
[1755754337636,137.68735897,187.68,187.57,2.28735897]
[1755754337831,2.81,187.67,187.58,9.89967644]
[1755754338033,2.81,187.67,187.59,12.23428277]
[1755754338333,2.81,187.67,187.6,6.86967644]
[1755754338537,2.81,187.67,187.61,6.86967644]
[1755754338731,2.81,187.67,187.59,5.36460633]
[1755754338925,2.81,187.67,187.6,6.86383258]
[1755754339231,2.81,187.67,187.61,6.86383258]
[1755754339432,2.28735897,187.66,187.59,0.03420633]
[1755754339733,2.81,187.65,187.59,0.03420633]
[1755754340031,2.28735897,187.63,187.59,0.03420633]
[1755754340337,2.81,187.6,187.59,0.03420633]
[1755754340932,2.81,187.63,187.59,0.03420633]
[1755754341137,135.2,187.66,187.6,3.03]
[1755754349442,135.2,187.66,187.6,8.3603]
[1755754349840,135.2,187.66,187.6,3.03]
[1755754350933,2.91,187.65,187.59,0.03420633]
[1755754351639,2.91,187.65,187.59,5.36480633]
[1755754352031,2.91,187.65,187.6,5.3303]
[1755754352238,135.2,187.66,187.6,8.2603]
[1755754354343,134.56,187.68,187.61,5.33]
[1755754354544,137.47,187.68,187.61,5.33]
[1755754355342,137.47,187.68,187.59,2.28735897]
[1755754355537,137.47,187.68,187.6,4.85612644]
[1755754355743,137.47,187.68,187.62,0.03453754]
[1755754356641,2.91,187.65,187.62,0.03453754]
[1755754358642,2.91,187.67,187.62,0.03453754]
[1755754358846,134.56,187.68,187.62,0.03453754]
[1755754359047,2.91,187.66,187.62,0.03453754]
[1755754359251,2.91,187.65,187.62,2.96453754]
[1755754363955,134.26,187.68,187.62,0.03453754]
[1755754364147,2.91,187.66,187.62,0.03453754]
[1755754364348,2.91,187.65,187.62,0.03453754]
[1755754364749,2.91,187.67,187.62,0.03453754]
[1755754364958,2.91,187.67,187.64,2.93]
[1755754365155,2.91,187.69,187.65,2.93]
[1755754365344,133.92,187.71,187.65,2.93]
[1755754365549,2.91,187.69,187.65,2.93]
[1755754365951,133.92,187.71,187.64,2.28735897]
[1755754366253,358.28,187.8,187.69,2.93]
[1755754366254,2.91,187.74,187.69,2.93]
[1755754366451,133.96,187.75,187.7,2.93]
[1755754366850,2.91,187.73,187.7,2.93]
[1755754367054,2.91,187.73,187.71,0.03532117]
[1755754367260,358.28,187.8,187.71,2.96532117]
[1755754367261,2.91,187.79,187.71,2.96532117]
[1755754367861,2.91,187.79,187.72,5.3268]
[1755754368359,2.91,187.79,187.71,8.29252117]
[1755754369058,2.91,187.77,187.71,0.03532117]
[1755754369763,5.19735897,187.77,187.71,0.03532117]
[1755754369970,2.91,187.76,187.71,0.03532117]
[1755754370765,2.91,187.73,187.71,0.03532117]
[1755754370962,134.0,187.75,187.71,0.03532117]
[1755754370963,2.91,187.72,187.71,0.03532117]
[1755754371962,2.91,187.72,187.62,2.93]
[1755754372267,2.91,187.69,187.63,6.83990003]
[1755754372461,136.28735897,187.7,187.64,6.83990003]
[1755754372765,2.91,187.67,187.65,6.83990003]
[1755754372966,2.91,187.67,187.66,4.85234288]
[1755754373367,0.03519064,187.68,187.66,6.84434496]
[1755754373560,0.03519064,187.68,187.67,6.84434496]
[1755754373758,136.87,187.73,187.67,9.77434496]
[1755754373965,133.96,187.73,187.68,4.85234288]
[1755754374165,0.03452348,187.69,187.65,5.21735897]
[1755754374364,0.03452348,187.69,187.66,6.85448024]
[1755754374565,0.03452348,187.69,187.67,6.85448024]
[1755754374760,2.94452348,187.69,187.68,6.85448024]
[1755754375167,0.03452348,187.69,187.68,6.85448024]
[1755754377162,3.00452348,187.69,187.68,6.85448024]
[1755754377861,5.29188245,187.69,187.68,6.85448024]
[1755754378170,5.29188245,187.69,187.68,4.86279823]
[1755754379365,5.29188245,187.69,187.68,6.86442282]
[1755754380866,0.03452348,187.69,187.68,2.00262273]
[1755754381066,0.03452348,187.69,187.68,6.80777792]
[1755754381663,0.03452348,187.69,187.68,9.70777792]
[1755754382073,0.03452348,187.69,187.68,6.80777792]
[1755754382973,0.03452348,187.69,187.68,6.81049364]
[1755754383476,3.00452348,187.69,187.68,6.81050981]
[1755754383976,0.03452348,187.69,187.68,6.81050981]
[1755754385972,0.03452348,187.69,187.68,6.81210207]
[1755754386868,3.00452348,187.69,187.68,6.81210207]
[1755754388173,5.29188245,187.69,187.68,6.81210207]
[1755754388372,5.29188245,187.69,187.68,2.00376855]
[1755754389578,5.29188245,187.69,187.62,2.9]
[1755754389763,5.29188245,187.69,187.63,6.81441832]
[1755754389968,5.29188245,187.69,187.65,2.9]
[1755754390169,5.29188245,187.69,187.66,6.81441832]
[1755754390474,2.97,187.68,187.67,6.81441832]
[1755754391179,2.97,187.68,187.62,2.9]
[1755754391378,2.28735897,187.66,187.63,6.81617785]
[1755754391675,2.28735897,187.66,187.64,6.81617785]
[1755754391872,2.28735897,187.66,187.63,2.9]